bitfinex/quotes_ETHUSD_20220120
["timestamp","ask_amount","ask_price","bid_price","bid_amount"]
[1642721622505,3.1638,3011.9,3011.8,1.64993526]
[1642721622699,22.401,3011.9,3011.8,1.64993526]
[1642721623500,22.401,3011.9,3010.8,0.92716117]
[1642721623501,3.15,3011.8,3010.8,0.92716117]
[1642721623702,2.4919639,3011.6,3010.8,0.92716117]
[1642721623902,0.381,3011.5,3010.9,0.00568423]
[1642721624102,19.37,3011.4,3010.9,0.00568423]
[1642721624331,19.751,3011.4,3010.9,0.00568423]
[1642721624735,0.83064,3011.2,3010.9,0.00568423]
[1642721624939,19.5028,3011.8,3010.9,0.00568423]
[1642721624940,0.381,3011.8,3010.9,0.00568423]
[1642721625141,2.87297,3012.1,3010.9,0.00568423]
[1642721625638,0.00113685,3012.3,3010.9,0.00568423]
[1642721625639,0.00113685,3012.3,3011.0,0.01288994]
[1642721625843,0.00113685,3012.3,3011.4,1.11508449]
[1642721626040,0.83028,3013.1,3011.4,1.11508449]
[1642721626041,0.00170528,3012.2,3011.5,4.1936]
[1642721626240,0.42360528,3013.2,3011.7,3.16253091]
[1642721626439,19.37,3013.5,3011.7,3.16253091]
[1642721626638,0.00511581,3013.1,3011.8,0.0022737]
[1642721626938,0.83023,3012.7,3011.8,0.0022737]
[1642721627337,0.00227369,3012.6,3011.8,0.0022737]
[1642721627742,0.83023,3012.7,3011.8,0.0022737]
[1642721627743,0.00170527,3012.5,3011.8,0.0022737]
[1642721627939,1.37202787,3012.3,3011.8,0.0022737]
[1642721628190,0.83023,3012.7,3011.8,0.0022737]
[1642721628191,0.00113684,3012.4,3011.8,0.0022737]
[1642721628389,0.00113684,3012.4,3011.6,0.00341055]
[1642721628589,0.00227369,3012.6,3011.6,0.00341055]
[1642721628889,0.00170527,3012.5,3011.6,0.00341055]
[1642721629088,0.83028,3012.4,3011.6,0.00341055]
[1642721629288,0.83141684,3012.4,3011.6,0.00341055]
[1642721630096,0.83045,3011.9,3011.6,0.00341055]
[1642721630693,0.83045,3011.9,3011.0,0.00682109]
[1642721631291,1.17422217,3012.0,3011.0,0.00682109]
[1642721632339,1.12422217,3012.0,3011.0,0.00682109]
[1642721632742,0.83046,3011.9,3011.0,0.00682109]
[1642721632944,1.66116,3011.7,3011.0,0.00682109]
[1642721633142,1.45638521,3011.1,3010.7,0.00852636]
[1642721633941,0.83053,3011.4,3010.7,0.00852636]
[1642721634340,1.66116,3011.7,3010.7,0.00852636]
[1642721634943,1.47401833,3011.2,3010.7,0.00852636]
[1642721636393,0.83062,3011.1,3010.7,0.00852636]
[1642721637106,1.47401833,3011.2,3010.7,0.00852636]
[1642721638099,1.47401833,3011.2,3010.7,1.13955613]
[1642721638291,0.83054,3011.6,3010.7,1.13955613]
[1642721638492,0.83054,3011.6,3010.8,0.00795793]
[1642721639096,0.83054,3011.6,3011.2,0.92800087]
[1642721639332,1.40485462,3011.6,3011.2,0.92800087]
[1642721639537,1.40485462,3011.6,3011.3,0.00511582]
[1642721640539,0.83062,3011.4,3010.7,0.00852636]
[1642721640739,0.83063,3011.1,3010.7,0.00852636]
[1642721641138,1.27103776,3010.9,3010.7,0.00852636]
[1642721641538,0.83063,3011.1,3010.7,0.00852636]
[1642721642239,0.83054,3011.3,3010.7,0.00852636]
[1642721642439,1.66108,3011.6,3011.0,0.86901302]
[1642721642440,1.29441077,3011.4,3011.0,0.86901302]
[1642721642838,1.29441077,3011.4,3011.1,0.00625266]
[1642721643686,2.12495077,3011.4,3011.1,0.00625266]
[1642721644087,3.78617077,3011.4,3010.7,0.00852636]
[1642721644289,3.78617077,3011.4,3010.7,0.14106936]
[1642721644290,0.83055,3011.3,3010.7,0.14106936]
[1642721644490,0.83055,3011.3,3010.7,0.00852636]
[1642721644695,0.381,3011.8,3010.8,2.825751]
[1642721644894,6.64416,3013.0,3010.9,2.98331307]
[1642721644895,2.49277684,3012.4,3010.9,2.98331307]
[1642721645095,0.00113684,3012.4,3011.2,0.01209775]
[1642721645296,0.00113684,3012.4,3011.5,0.83011]
[1642721645493,0.00113684,3012.4,3011.9,0.01213131]
[1642721645693,0.00113684,3012.4,3012.0,0.08326017]
[1642721645897,0.00113684,3012.4,3012.0,0.00113685]
[1642721646698,0.00113684,3012.4,3011.7,0.00284212]
[1642721646956,0.83138684,3012.4,3011.7,0.00284212]
[1642721648349,1.18419491,3012.2,3011.7,0.00284212]
[1642721648555,2.01450491,3012.2,3011.7,0.00284212]
[1642721648747,2.01450491,3012.2,3011.7,3.30284212]
[1642721648948,1.18419491,3012.2,3011.7,3.30284212]
[1642721649149,1.18419491,3012.2,3011.8,0.0022737]
[1642721649754,0.00113684,3012.4,3011.8,0.0022737]
[1642721650154,0.00113684,3012.4,3011.8,1.00195351]
[1642721650585,0.00113684,3012.4,3011.9,0.00170528]
[1642721650787,0.00113684,3012.4,3011.9,2.81850402]
[1642721650986,3.684e-05,3012.4,3011.9,0.00170528]
[1642721651193,3.684e-05,3012.4,3012.0,0.96378685]
[1642721651389,3.684e-05,3012.4,3012.3,3.16298743]
[1642721651592,3.684e-05,3012.4,3012.3,6.25068614]
[1642721651789,3.684e-05,3012.4,3012.3,3.5994074]
[1642721651988,3.684e-05,3012.4,3012.3,3.4338874]
[1642721652190,3.684e-05,3012.4,3012.3,3.28819997]
[1642721653591,3.684e-05,3012.4,3012.2,0.1327]
[1642721653990,0.83033684,3012.4,3012.1,0.00166843]
[1642721654444,0.83033684,3012.4,3011.8,0.0033737]
[1642721654647,2.31425003,3012.4,3011.8,0.0033737]
[1642721654845,3.14455003,3012.4,3011.8,0.0033737]
[1642721655448,1.48395003,3012.4,3011.8,0.0033737]
[1642721656547,0.81366741,3012.3,3011.8,0.0033737]
[1642721657548,0.83042,3012.2,3011.8,0.0033737]
[1642721657747,0.83046,3012.1,3011.8,0.0033737]
[1642721659893,3.32186,3012.1,3011.8,0.0033737]
[1642721660093,4.49031739,3012.1,3011.8,0.0033737]
[1642721660496,1.11004265,3012.0,3011.8,0.0033737]
[1642721660695,2.0422,3011.9,3011.7,3.3]
[1642721660895,2.0422,3011.9,3010.4,4.1968]
[1642721660896,2.25,3011.7,3010.4,4.1968]
[1642721661196,2.25,3011.7,3010.5,2.82526129]
[1642721661197,0.8308,3011.3,3010.5,2.82526129]
[1642721661395,0.8308,3011.3,3010.6,2.81787179]
[1642721661396,0.381,3011.2,3010.6,2.81787179]
[1642721661599,0.381,3011.2,3010.6,2.82469287]
[1642721661832,1.21166,3011.2,3010.7,0.00625266]
[1642721662635,2.04239,3011.2,3010.7,0.00625266]
[1642721663036,0.83069,3011.1,3010.7,0.00625266]
[1642721664040,23.27178937,3011.0,3010.7,0.00625266]
[1642721664244,1.66183,3010.9,3010.7,0.00625266]
[1642721664444,2.031,3010.8,3010.7,0.00625266]
[1642721665043,21.401,3010.8,3010.7,0.00625266]
[1642721665243,0.83092,3010.6,3010.2,0.00909477]
[1642721665443,2.04284,3010.6,3010.2,0.00909477]
[1642721666090,0.381,3010.6,3010.2,0.00909477]
[1642721666287,1.31410443,3010.3,3010.2,0.00909477]
[1642721667288,2.32288315,3010.3,3010.2,0.00909477]
[1642721667490,2.75,3010.2,3009.3,0.007]
[1642721667697,0.381,3010.1,3009.3,0.007]
[1642721667892,2.17628,3010.1,3009.4,0.00454739]
[1642721668091,2.17628,3010.1,3008.2,11.79591358]
[1642721668292,0.00341054,3010.0,3008.3,2.81905366]
[1642721668495,0.00341054,3010.0,3008.3,2.77530632]
[1642721668496,0.381,3009.9,3008.3,2.77530632]
[1642721668695,0.381,3009.9,3008.3,0.00625266]
[1642721668696,1.66232,3009.5,3008.3,0.00625266]
[1642721668993,0.83116,3009.5,3008.3,0.00625266]
[1642721669337,0.00227369,3009.8,3008.3,0.00625266]
[1642721669741,0.83104,3009.6,3008.3,0.83726376]
[1642721670142,0.83104,3009.6,3008.4,0.00568424]
[1642721671540,0.83112,3009.5,3008.4,0.00568424]
[1642721671744,1.23316377,3008.8,3008.4,0.00568424]
[1642721672544,2.06447377,3008.8,3008.4,0.00568424]
[1642721672947,0.83134,3008.7,3008.4,0.00568424]
[1642721673385,1.23316377,3008.8,3008.4,0.00568424]
[1642721676835,0.381,3009.2,3008.4,0.00568424]
[1642721677234,1.30945774,3009.2,3008.6,0.02189828]
[1642721677438,0.381,3009.2,3008.6,0.02189828]
[1642721677734,0.381,3009.2,3008.7,0.00397897]
[1642721677935,1.23989428,3009.1,3008.7,0.00397897]
[1642721678138,1.66276,3009.0,3008.7,0.00397897]
[1642721678337,19.37,3008.9,3008.7,0.00397897]
[1642721678637,0.01003889,3008.7,3006.7,4.3154]
[1642721678840,0.381,3008.6,3006.7,4.3154]
[1642721679038,1.11669911,3007.6,3006.8,0.01080004]
[1642721679238,19.37,3008.5,3006.7,5.12304657]
[1642721679439,0.381,3008.4,3006.7,5.12304657]
[1642721679645,19.76009477,3008.4,3006.7,5.12304657]
[1642721679842,0.83152,3008.1,3006.7,5.12304657]
[1642721680045,0.83152,3008.1,3006.8,1.55269526]
[1642721680243,0.00852635,3008.3,3006.8,1.55269526]
[1642721680244,0.38782108,3008.0,3006.8,1.55269526]
[1642721680698,19.37625266,3007.9,3006.8,1.55269526]
[1642721680896,1.18405666,3007.4,3006.8,1.55269526]
[1642721681098,2.01578666,3007.4,3006.8,1.55269526]
[1642721681298,0.00284212,3007.3,3006.8,1.55269526]
[1642721681498,0.00284212,3007.3,3006.7,4.27620004]
[1642721681699,0.00227369,3007.2,3006.7,4.27620004]
[1642721682100,0.00170527,3007.1,3006.7,4.27620004]
[1642721682500,0.00113685,3007.0,3006.7,4.27620004]
[1642721682704,0.00113685,3007.0,3006.1,0.86960897]
[1642721682900,0.00113685,3007.0,3006.2,4.08089853]
[1642721683099,0.00113685,3007.0,3006.9,0.00398163]
[1642721683900,19.37113685,3007.0,3006.9,0.00398163]
[1642721684743,19.75213685,3007.0,3006.9,0.00398163]
[1642721684944,1.52853467,3006.9,3006.3,0.00284212]
[1642721685247,1.52853467,3006.9,3006.1,0.86960897]
[1642721685248,0.83201,3006.8,3006.1,0.86960897]
[1642721685446,19.751,3006.7,3006.1,0.86960897]
[1642721685643,19.75327369,3006.7,3006.1,0.86960897]
[1642721685843,0.90112776,3006.3,3006.1,0.86960897]
[1642721686242,0.90112776,3006.3,3005.8,0.00290892]
[1642721686243,4.300862,3006.2,3005.8,0.00290892]
[1642721686445,19.32,3006.1,3005.8,0.00290892]
[1642721686644,0.514,3006.0,3005.9,0.00227369]
[1642721686844,0.381,3006.0,3005.9,0.00227369]
[1642721687444,0.00170527,3006.6,3006.1,3.2]
[1642721687445,0.381,3006.3,3006.1,3.2]
[1642721687647,5.27e-06,3006.6,3006.5,3.2]
[1642721687848,0.133,3007.6,3006.6,0.13467139]
[1642721688093,0.133,3007.6,3006.5,3.21200072]
[1642721688094,0.133,3007.6,3007.5,3.2129066]
[1642721688295,3.8453,3008.9,3007.5,3.2129066]
[1642721688296,4.98483109,3008.9,3007.5,4.262255]
[1642721688495,1.13953109,3008.9,3007.6,4.3039]
[1642721688694,4.246,3009.1,3008.2,0.01253527]
[1642721688894,3.7767,3009.4,3007.6,5.79440572]
[1642721689094,1.1752,3010.2,3007.7,0.09417248]
[1642721689095,0.01364743,3009.0,3007.7,0.09417248]
[1642721689294,0.01364743,3009.0,3008.2,0.01261287]
[1642721689497,0.01307901,3008.9,3008.2,0.01261287]
[1642721689697,0.01307901,3008.9,3007.7,3.07598115]
[1642721689898,1.37833774,3009.8,3007.6,3.62888572]
[1642721689899,0.01251059,3008.8,3007.6,3.62888572]
[1642721690301,0.01194216,3008.7,3007.6,3.62888572]
[1642721690502,1.21419459,3008.7,3007.6,3.62888572]
[1642721690699,0.92173397,3008.2,3007.6,3.62888572]
[1642721690902,0.92173397,3008.2,3007.7,0.1329]
[1642721691104,0.92173397,3008.2,3007.6,3.62888572]
[1642721691105,0.00853162,3008.1,3007.6,3.62888572]
[1642721691502,0.01213414,3008.3,3007.6,3.62888572]
[1642721691503,0.0079632,3008.0,3007.6,3.62888572]
[1642721691982,0.00739478,3007.9,3007.6,3.62888572]
[1642721692169,0.00739478,3007.9,3007.8,3.37872658]
[1642721692170,9.478e-05,3007.9,3007.8,3.37872658]
[1642721692368,0.89098847,3009.2,3007.8,3.51152658]
[1642721692567,0.89098847,3009.2,3007.9,0.1328]
[1642721693374,1.32311782,3009.5,3007.9,0.1328]
[1642721693375,0.00918955,3009.5,3007.9,0.1328]
[1642721693572,0.00918955,3009.5,3008.0,0.16623]
[1642721693771,0.00862113,3009.4,3008.0,0.16623]
[1642721694176,0.0080527,3009.3,3008.0,0.16623]
[1642721694372,0.0080527,3009.3,3008.0,1.00720202]
[1642721694578,0.83115,3009.7,3008.0,1.30720202]
[1642721694579,0.00748428,3009.2,3008.0,1.30720202]
[1642721694775,0.00748428,3009.2,3008.1,0.1328]
[1642721694975,1.1592,3009.8,3008.1,0.1328]
[1642721694976,0.00691586,3009.1,3008.1,0.1328]
[1642721695376,1.1592,3009.8,3008.2,0.381]
[1642721695377,0.00634743,3009.0,3008.2,0.381]
[1642721695586,0.00634743,3009.0,3008.3,0.1328]
[1642721695792,0.00577901,3008.9,3008.5,0.8309]
[1642721695989,0.00577901,3008.9,3008.7,0.10301926]
[1642721696190,1.0822,3010.7,3008.9,0.11369288]
[1642721696388,0.18309,3010.9,3009.3,0.8307806]
[1642721696389,0.05029,3010.9,3009.3,0.8307806]
[1642721696590,0.00746852,3010.2,3009.5,0.10110294]
[1642721696789,0.00746852,3010.2,3009.7,0.080763]
[1642721696991,0.00690009,3010.1,3009.8,0.1328]
[1642721697191,0.00690009,3010.1,3009.9,0.09101847]
[1642721697393,0.05029,3011.4,3010.0,3.3328]
[1642721697595,4.86221,3012.1,3010.1,0.08896585]
[1642721697596,0.05029,3011.7,3010.1,0.08896585]
[1642721697791,0.01372117,3011.3,3010.2,0.1328]
[1642721697992,3.14791117,3012.1,3010.3,3.2]
[1642721698298,0.880202,3011.1,3010.4,0.08689503]
[1642721698493,0.880202,3011.1,3010.5,0.1328]
[1642721698694,0.00170527,3011.6,3010.6,0.54723]
[1642721698899,0.00170527,3011.6,3010.9,0.83019]
[1642721699092,2.0,3013.0,3011.0,1.21117]
[1642721699093,0.00113685,3011.5,3011.0,1.21117]
[1642721699347,0.00113685,3011.5,3011.1,0.08296382]
[1642721699552,2.0,3013.0,3011.2,0.381]
[1642721699553,0.00625266,3012.4,3011.2,0.381]
[1642721699753,0.00625266,3012.4,3011.1,0.00113684]
[1642721699754,1.1172686,3012.3,3011.1,0.00113684]
[1642721699953,1.3922595,3011.7,3011.1,0.00113684]
[1642721700152,1.3922595,3011.7,3010.6,0.38497896]
[1642721700352,0.00511582,3012.2,3010.7,0.00341054]
[1642721700753,0.85079754,3011.5,3010.7,0.83376714]
[1642721700957,0.85079754,3011.5,3010.8,0.1328]
[1642721701256,0.27099997,3013.0,3011.4,0.01258735]
[1642721701455,2.51186813,3013.2,3011.4,0.01258735]
[1642721701456,1.12928959,3012.8,3011.6,0.13199571]
[1642721701655,1.12928959,3012.8,3011.8,0.12412148]
[1642721701656,0.00170527,3012.4,3011.8,0.12412148]
[1642721701853,0.00170527,3012.4,3011.9,0.1327]
[1642721702054,1.12928959,3012.8,3011.9,0.00113685]
[1642721702055,3.685e-05,3012.3,3011.9,0.00113685]
[1642721702253,3.685e-05,3012.3,3012.1,0.08719483]
[1642721702455,1.054e-05,3012.7,3012.3,0.09660462]
[1642721702653,1.054e-05,3012.7,3012.5,0.07857275]
[1642721702853,0.01229597,3014.2,3012.7,0.08902131]
[1642721702854,0.00740005,3014.0,3012.7,0.08902131]
[1642721703140,0.00740005,3014.0,3012.9,0.09893105]
[1642721703315,1.1787,3015.5,3012.6,3.66623]
[1642721703316,0.00683162,3013.9,3013.1,0.08301482]
[1642721703623,0.00683162,3013.9,3013.3,0.09699415]
[1642721703815,2.1327,3015.4,3013.3,0.09699415]
[1642721703816,0.0062632,3013.8,3013.3,0.26322415]
[1642721704018,0.0889632,3015.4,3013.4,0.8295516]
[1642721704219,4.78971,3015.9,3013.3,3.2]
[1642721704220,0.1326,3015.6,3013.7,0.01231848]
[1642721704420,4.78959,3015.9,3013.8,0.09281128]
[1642721704421,1.05124268,3014.4,3013.8,0.09281128]
[1642721704721,1.05124268,3014.4,3013.5,0.07083838]
[1642721704722,0.00284212,3014.3,3013.5,0.07083838]
[1642721704925,0.00284212,3014.3,3013.5,0.00170527]
[1642721705119,0.00227369,3014.2,3013.6,0.00113685]
[1642721705319,0.00227369,3014.2,3013.4,0.00227369]
[1642721705621,1.05124268,3014.4,3013.4,0.00227369]
[1642721705622,0.01214659,3013.7,3013.4,0.00227369]
[1642721705820,0.1327,3013.6,3013.4,0.00227369]
[1642721706021,0.1327,3013.6,3012.3,0.00852635]
[1642721706022,0.0008,3013.3,3012.3,0.00852635]
[1642721706227,0.0008,3013.3,3011.7,0.13819997]
[1642721706228,0.83028,3013.1,3012.1,0.0096632]
[1642721706424,0.83028,3013.1,3011.8,0.01136847]
[1642721706620,0.94914633,3012.0,3011.8,0.01136847]
[1642721706847,1.15309455,3012.3,3011.8,0.01136847]
[1642721707036,0.381,3013.2,3011.8,0.01136847]
[1642721707237,0.381,3013.2,3011.8,0.14406847]
[1642721707635,0.0008,3013.3,3011.9,0.02344865]
[1642721707838,1.05445401,3013.0,3012.0,0.1327]
[1642721708045,1.05445401,3013.0,3012.0,0.14293162]
[1642721708242,0.0008,3013.3,3012.1,0.0096632]
[1642721708442,0.0008,3013.3,3012.2,0.1327]
[1642721708845,2.5226,3014.1,3012.3,3.20852635]
[1642721709046,0.1327,3014.2,3012.6,0.01212941]
[1642721709246,3.18174212,3014.3,3012.6,0.01212941]
[1642721709247,0.97599661,3013.6,3012.6,0.01212941]
[1642721709545,0.00227369,3014.2,3012.7,0.00625266]
[1642721709743,0.00227369,3014.2,3012.8,0.16623]
[1642721709944,0.00170527,3014.1,3012.9,0.1327]
[1642721710147,0.00170527,3014.1,3012.9,0.00511581]
[1642721710345,0.00113685,3014.0,3013.0,0.13724739]
[1642721710592,0.00113685,3014.0,3013.2,0.01209885]
[1642721710894,0.13819997,3015.3,3013.4,0.13884409]
[1642721710895,0.00227369,3014.2,3013.4,0.13884409]
[1642721711090,0.09047366,3015.3,3013.9,0.01271847]
[1642721711291,3.0771,3015.8,3014.0,0.1326]
[1642721711496,0.00568424,3015.2,3014.0,0.13373684]
[1642721711892,0.00511582,3015.1,3014.0,0.13373684]
[1642721712091,1.01905286,3015.0,3014.0,0.13373684]
[1642721712292,1.01905286,3015.0,3014.0,0.00113684]
[1642721712293,1.02360025,3015.0,3014.0,0.00113684]
[1642721712491,0.00397897,3014.9,3014.0,0.00113684]
[1642721712890,0.00341055,3014.8,3014.0,0.00113684]
[1642721713392,1.01905286,3015.0,3014.0,0.00113684]
[1642721713393,0.13544212,3014.7,3014.0,0.00113684]
[1642721713590,0.51644212,3014.7,3014.0,0.00113684]
[1642721713891,0.51644212,3014.7,3013.5,0.00397896]
[1642721713892,0.0022737,3014.6,3013.5,0.00397896]
[1642721714094,0.5137,3014.5,3013.5,0.00397896]
[1642721714343,1.9499118,3014.4,3013.5,0.00397896]
[1642721714539,1.29579838,3013.6,3013.5,0.00397896]
[1642721714740,2.3516304,3013.6,3013.5,0.00397896]
[1642721716848,2.7326304,3013.6,3013.5,0.00397896]
[1642721717041,2.7326304,3013.6,3013.4,7.595e-05]
[1642721717042,3.15,3013.5,3013.4,7.595e-05]
[1642721717244,0.83031,3013.1,3011.8,0.1327]
[1642721717443,1.51420059,3012.0,3011.8,0.1327]
[1642721717643,1.51420059,3012.0,3011.9,0.00909478]
[1642721717644,2.38964308,3012.0,3011.9,0.00909478]
[1642721718082,2.38964308,3012.0,3011.8,0.0096632]
[1642721719184,0.87544249,3012.0,3011.8,0.0096632]
[1642721719390,0.381,3012.7,3011.8,0.0096632]
[1642721719589,0.1328,3013.1,3011.8,0.0096632]
[1642721719590,0.381,3013.1,3011.8,0.0096632]
[1642721720292,1.45343286,3012.2,3011.8,0.0096632]
[1642721720489,1.04036973,3012.1,3011.8,0.0096632]
[1642721721493,1.04036973,3012.1,3011.6,0.01080005]
[1642721721940,0.381,3012.0,3011.6,0.01080005]
[1642721722538,1.54983321,3011.6,3011.1,0.01364216]
[1642721722740,1.51488121,3011.6,3011.1,0.01364216]
[1642721723139,0.90036847,3011.2,3011.1,0.01364216]
[1642721723343,0.90036847,3011.2,3011.1,0.14644216]
[1642721723845,0.90036847,3011.2,3010.3,0.01213057]
[1642721724142,0.1328,3012.1,3012.0,18.20375032]
[1642721724345,2.23438424,3012.1,3012.0,18.20375032]
[1642721724742,2.62432,3012.2,3012.0,18.20375032]
[1642721724743,0.1327,3012.2,3012.0,18.20375032]
[1642721724946,0.1327,3012.9,3012.0,18.20375032]
[1642721725146,3.9719,3013.3,3012.0,18.20375032]
[1642721725342,0.00625266,3012.2,3012.0,18.20375032]
[1642721725787,0.83023,3013.1,3012.0,18.20375032]
[1642721725788,0.00568423,3012.1,3012.0,18.20375032]
[1642721726086,1.24178049,3012.1,3012.0,18.20375032]
[1642721726386,4.07448049,3012.1,3012.0,18.20375032]
[1642721726586,3.2,3012.0,3010.5,0.1327]
[1642721726788,0.5138,3011.9,3010.5,0.1327]
[1642721726990,0.5138,3011.9,3010.1,3.65302055]
[1642721726991,0.8308129,3011.4,3010.6,0.00284212]
[1642721727192,0.8308,3011.2,3010.6,0.00284212]
[1642721727390,0.8308,3011.1,3010.2,0.00511581]
[1642721727590,0.8308,3011.2,3010.3,0.1328]
[1642721727591,2.39708524,3010.7,3010.3,0.1328]
[1642721727791,2.39708524,3010.7,3009.7,3.9297]
[1642721727792,2.77808524,3010.7,3009.8,0.00738951]
[1642721727991,1.54626914,3010.1,3009.8,0.00738951]
[1642721728196,0.97928379,3010.0,3009.8,0.00738951]
[1642721728491,0.97928379,3010.0,3009.5,0.00909478]
[1642721728492,20.73028379,3010.0,3009.5,0.00909478]
[1642721728692,20.73028379,3010.0,3008.4,0.007]
[1642721728693,4.16388,3009.9,3008.4,0.007]
[1642721728890,4.16388,3009.9,3008.5,0.01477901]
[1642721728891,19.751,3009.8,3008.5,0.01477901]
[1642721729091,1.66266,3009.6,3008.5,0.01477901]
[1642721729367,1.1478281,3008.9,3008.5,0.01477901]
[1642721729770,1.33504276,3009.1,3008.5,0.01477901]
[1642721729964,3.45921685,3009.7,3008.5,0.01477901]
[1642721729965,0.381,3009.6,3008.5,0.01477901]
[1642721730165,0.381,3009.6,3008.4,0.007]
[1642721730166,0.00113685,3009.7,3008.3,1.46256059]
[1642721730366,0.01477901,3009.5,3008.3,1.46256059]
[1642721730564,2.0,3010.3,3008.3,1.46256059]
[1642721730565,0.01534744,3009.6,3008.4,3.8401]
[1642721730765,0.381,3010.0,3008.4,3.8401]
[1642721730766,0.97656398,3009.3,3008.4,3.8401]
[1642721730965,0.01477901,3009.5,3008.8,1.49715882]
[1642721731167,0.01307374,3009.2,3008.8,1.49715882]
[1642721731367,0.01421059,3009.4,3008.8,1.49715882]
[1642721731564,0.1328,3010.0,3008.9,0.1328]
[1642721731565,0.01250532,3009.1,3008.9,0.1328]
[1642721731770,0.381,3010.0,3008.9,0.1328]
[1642721731771,0.01364216,3009.3,3008.9,0.1328]
[1642721731968,0.01193689,3009.0,3008.9,0.1328]
[1642721732167,0.01307374,3009.2,3008.9,0.1328]
[1642721732370,0.381,3010.4,3008.9,0.1328]
[1642721732371,0.01193689,3009.0,3008.9,0.1328]
[1642721732567,0.01250532,3009.1,3008.9,0.1328]
[1642721732769,1.12601356,3010.1,3008.9,0.1328]
[1642721732770,0.01193689,3009.0,3008.9,0.1328]
[1642721732969,0.01762113,3009.0,3008.9,0.1328]
[1642721733189,0.01193689,3009.0,3008.9,3.3328]
[1642721733798,0.01193689,3009.0,3008.4,3.9729]
[1642721734197,0.01136847,3008.9,3008.4,3.9729]
[1642721734603,0.89363671,3008.8,3008.4,3.9729]
[1642721734799,1.25792985,3008.6,3008.4,0.1328]
[1642721735198,0.00909478,3008.5,3008.4,0.1328]
[1642721737244,0.00909478,3008.5,3007.6,0.1328]
[1642721737449,0.00909478,3008.5,3006.9,0.1328]
[1642721737450,0.39009478,3008.5,3006.9,0.1328]
[1642721737653,19.51132635,3008.4,3006.9,0.1328]
[1642721737850,1.6633092,3008.2,3006.9,0.1328]
[1642721738154,0.83172,3007.9,3006.9,0.1328]
[1642721738347,0.381,3007.8,3006.8,3.874]
[1642721738551,1.0289155,3007.0,3006.8,3.874]
[1642721738948,1.0289155,3007.0,3006.3,1.13537168]
[1642721739149,1.0289155,3007.0,3006.4,0.133]
[1642721739355,1.81179659,3007.1,3006.4,0.13584212]
[1642721740253,0.381,3007.1,3006.4,0.13584212]
[1642721740452,0.00454739,3007.7,3006.4,0.08134428]
[1642721740700,0.00454739,3007.7,3006.5,0.133]
[1642721740900,0.00397897,3007.6,3006.5,0.20159756]
[1642721741101,0.00397897,3007.6,3006.6,0.00170527]
[1642721741102,1.21057163,3007.0,3006.6,0.00170527]
[1642721741501,0.87409212,3006.7,3006.6,0.00170527]
[1642721741699,0.87409212,3006.7,3006.0,0.133]
[1642721741700,0.87409212,3006.7,3006.1,0.00454739]
[1642721741899,0.87409212,3006.7,3006.2,0.133]
[1642721742101,0.87409212,3006.7,3006.1,0.00454739]
[1642721742102,1.32239486,3006.3,3006.1,0.00454739]
[1642721742301,1.32239486,3006.3,3005.8,0.00290892]
[1642721742302,0.381,3006.2,3005.8,0.00290892]
[1642721742903,1.05909435,3005.9,3005.8,0.00290892]
[1642721743103,1.05909435,3005.9,3005.5,0.72090892]
[1642721743104,1.44009435,3005.9,3005.5,0.72090892]
[1642721743304,1.44009435,3005.9,3005.8,0.00625266]
[1642721743501,2.66025896,3005.9,3005.8,0.00625266]
[1642721743906,3.49242896,3005.9,3005.8,0.00625266]
[1642721744749,3.49242896,3005.9,3005.5,0.58790892]
[1642721744750,3.16219808,3005.8,3005.5,0.58790892]
[1642721744950,0.381,3005.7,3005.5,0.58790892]
[1642721745149,0.381,3005.7,3005.6,0.00113684]
[1642721745553,1.66464,3005.6,3005.5,0.58790892]
[1642721745750,0.381,3005.7,3005.5,0.58790892]
[1642721746353,0.381,3006.5,3005.6,0.133]
[1642721746752,0.00454738,3006.4,3005.7,1.30967223]
[1642721746953,0.00454738,3006.4,3006.3,3.91482677]
[1642721747152,0.381,3007.3,3006.3,3.91482677]
[1642721747553,0.00909477,3007.2,3006.4,0.133]
[1642721747950,1.50932343,3007.4,3006.3,1.36482677]
[1642721747951,0.00852635,3007.1,3006.3,1.36482677]
[1642721748401,0.00795793,3007.0,3006.8,1.13432082]
[1642721748596,0.00795793,3007.0,3006.1,0.133]
[1642721748800,0.97141027,3007.3,3006.1,0.133]
[1642721748801,0.0073895,3006.9,3006.1,0.133]
[1642721749200,0.00682108,3006.8,3006.1,0.133]
[1642721749601,0.97141027,3007.3,3006.1,0.133]
[1642721749602,0.00625265,3006.7,3006.1,0.133]
[1642721750004,0.00568423,3006.6,3006.1,0.133]
[1642721750400,0.00511581,3006.5,3006.1,0.133]
[1642721750808,0.00454738,3006.4,3006.1,1.29505308]
[1642721751009,0.83644208,3006.4,3006.1,0.133]
[1642721751205,0.00397896,3006.3,3006.1,0.133]
[1642721751605,0.00341054,3006.2,3006.1,0.133]
[1642721751876,0.00341054,3006.2,3006.1,2.983]
[1642721753567,0.00341054,3006.2,3006.1,2.933]
[1642721754072,0.00341054,3006.2,3006.1,0.083]
[1642721754270,0.00341054,3006.2,3005.7,0.133]
[1642721754674,0.8318121,3006.6,3005.7,0.133]
[1642721754675,0.00284211,3006.1,3005.7,0.133]
[1642721755075,1.6636521,3006.6,3005.8,1.46885778]
[1642721755076,0.00227369,3006.0,3005.8,1.46885778]
[1642721755275,1.6636521,3006.6,3006.0,0.00293387]
[1642721755474,1.6636521,3006.6,3006.0,0.13593387]
[1642721755697,0.00284212,3006.5,3006.0,0.13593387]
[1642721756098,1.03628966,3006.3,3006.0,0.13593387]
[1642721756300,1.03628966,3006.3,3006.0,0.00293387]
[1642721756499,0.00113685,3006.2,3006.0,0.00293387]
[1642721757101,1.28026831,3006.2,3006.0,0.00293387]
[1642721757304,0.00113685,3006.2,3006.0,0.00293387]
[1642721757502,3.685e-05,3006.2,3006.0,0.00293387]
[1642721757704,3.685e-05,3006.2,3006.1,3.32832523]
[1642721757906,3.685e-05,3006.2,3006.1,3.46132523]
[1642721758104,6.8575,3008.1,3006.3,0.12840919]
[1642721758304,3.098,3008.1,3006.8,0.9657709]
[1642721758507,2.456,3008.6,3006.9,3.8823]
[1642721758508,0.00909477,3007.8,3006.9,3.8823]
[1642721758904,0.83135,3008.2,3006.9,3.8823]
[1642721758905,0.00852635,3007.7,3006.9,3.8823]
[1642721759102,0.00852635,3007.7,3007.0,1.33899824]
[1642721759346,0.8313,3008.5,3007.1,0.133]
[1642721759347,0.00795793,3007.6,3007.1,0.133]
[1642721759753,0.0073895,3007.5,3007.1,0.133]